Workbook

Sheet ShopGroupConfig
A1: ID | C1: sortNum | D1: shopName | E1: RefreshType | F1: refreshCostItemId | G1: refreshCost | H1: refreshLimit
A2: int | C2: int | D2: int | E2: int | F2: int | G2: int[] | H2: int
A4: ID | B4: 商店名（策划用） | C4: 选项卡排序 -小的在前面 | D4: 商店名 （左侧列表中名字） | E4: 刷新类型 0=不刷新 1=每日自动刷新 2=每周自动刷新 3=每月自动刷新 4=按开启时间固定间隔自动刷新 | F4: 刷新消耗道具ID （此列不为-1时，可以手动刷新） | G4: 刷新消耗道具数量 （刷新次数增加消耗会改变，0表示免费) | H4: 周期内刷新次数上限（如果有手动刷新，必须要填次数） | I4: 备注
A5: 1 | B5: =VLOOKUP(D5,[1]語言配置表!$A:$B,2,FALSE) -> GM商店 | C5: 1 | D5: 1900 | E5: 1 | F5: -1 | G5: -1 | H5: -1
A6: 2 | B6: =VLOOKUP(D6,[1]語言配置表!$A:$B,2,FALSE) -> 法宝商店 | C6: 2 | D6: 1904 | E6: 1 | F6: -1 | G6: -1 | H6: -1
A7: 3 | B7: =VLOOKUP(D7,[1]語言配置表!$A:$B,2,FALSE) -> 功法商店 | C7: 3 | D7: 1905 | E7: 1 | F7: -1 | G7: -1 | H7: -1

Sheet ShopConfig
A1: ID | C1: shopName | D1: shopDesc | E1: shopShowTemplate | F1: shopShowTemplateParm | G1: shopGroup | H1: unlockType | I1: unlockValue | J1: unlockMessage | K1: shopItemID | L1: pageSortNum | M1: continueTime
A2: int | C2: int | D2: int | E2: int | F2: string[] | G2: int | H2: int | I2: int[] | J2: int | K2: int | L2: int | M2: int
A4: ID | B4: 商店名 （策划用） | C4: 品名 | D4: 商品介绍 | E4: 商品表现的模板 | F4: 商品表现的模板de参数 | G4: 页签所属商店 | H4: 解锁条件 0=无 1=关卡 2=共鸣等级 | I4: 解锁参数 | J4: 解锁描述 | K4: 对应的商品ID | L4: 页签排序 （小的在前面） | M4: 持续时间（分钟） (-1永久)
A5: 1 | C5: =VLOOKUP(VLOOKUP(K5,ShopItemConfig!A:C,3,FALSE),[2]ItemConfig!$A:$B,2,FALSE) -> 169 | E5: 3 | F5: icon_Coin | G5: 1 | H5: 0 | I5: 0 | J5: 0 | K5: 1 | L5: 1 | M5: -1
A6: 2 | C6: =VLOOKUP(VLOOKUP(K6,ShopItemConfig!A:C,3,FALSE),[2]ItemConfig!$A:$B,2,FALSE) -> 170 | E6: 3 | F6: icon_Coins_s | G6: 1 | H6: 0 | I6: 0 | J6: 0 | K6: 2 | L6: 2 | M6: -1
A7: 3 | C7: =VLOOKUP(VLOOKUP(K7,ShopItemConfig!A:C,3,FALSE),[2]ItemConfig!$A:$B,2,FALSE) -> 171 | E7: 3 | F7: icon_Gem_Star_Blue | G7: 1 | H7: 0 | I7: 0 | J7: 0 | K7: 3 | L7: 3 | M7: -1
A8: 4 | C8: =VLOOKUP(VLOOKUP(K8,ShopItemConfig!A:C,3,FALSE),[2]ItemConfig!$A:$B,2,FALSE) -> 248 | E8: 3 | F8: icon_Demo_Gem04 | G8: 1 | H8: 0 | I8: 0 | J8: 0 | K8: 4 | L8: 4 | M8: -1
A9: 5 | C9: =VLOOKUP(VLOOKUP(K9,ShopItemConfig!A:C,3,FALSE),[2]ItemConfig!$A:$B,2,FALSE) -> 725 | E9: 3 | F9: icon_GradeBadge_Master | G9: 1 | H9: 0 | I9: 0 | J9: 0 | K9: 5 | L9: 5 | M9: -1
A10: 6 | C10: =VLOOKUP(VLOOKUP(K10,ShopItemConfig!A:C,3,FALSE),[2]ItemConfig!$A:$B,2,FALSE) -> 1400 | E10: 3 | F10: icon_GradeBadge_Challenger | G10: 1 | H10: 0 | I10: 0 | J10: 0 | K10: 6 | L10: 6 | M10: -1
A11: 7 | C11: =VLOOKUP(VLOOKUP(K11,ShopItemConfig!A:C,3,FALSE),[2]ItemConfig!$A:$B,2,FALSE) -> 268 | E11: 3 | F11: icon_Gem_Star_Blue | G11: 1 | H11: 0 | I11: 0 | J11: 0 | K11: 7 | L11: 7 | M11: -1
A12: 8 | C12: =VLOOKUP(VLOOKUP(K12,ShopItemConfig!A:C,3,FALSE),[2]ItemConfig!$A:$B,2,FALSE) -> 269 | E12: 3 | F12: icon_Demo_Gem04 | G12: 1 | H12: 0 | I12: 0 | J12: 0 | K12: 8 | L12: 8 | M12: -1
A13: 9 | C13: =VLOOKUP(VLOOKUP(K13,ShopItemConfig!A:C,3,FALSE),[2]ItemConfig!$A:$B,2,FALSE) -> 270 | E13: 3 | F13: icon_GradeBadge_Master | G13: 1 | H13: 0 | I13: 0 | J13: 0 | K13: 9 | L13: 9 | M13: -1
A14: 10 | C14: =VLOOKUP(VLOOKUP(K14,ShopItemConfig!A:C,3,FALSE),[2]ItemConfig!$A:$B,2,FALSE) -> 271 | E14: 3 | F14: icon_GradeBadge_Challenger | G14: 1 | H14: 0 | I14: 0 | J14: 0 | K14: 10 | L14: 10 | M14: -1
A16: 101 | C16: 300 | E16: 3 | F16: icon_eq_3_4_3 | G16: 2 | H16: 0 | I16: 0 | J16: 0 | K16: 101 | L16: 1 | M16: -1
A17: 102 | C17: 301 | E17: 3 | F17: icon_eq_3_4_3 | G17: 2 | H17: 0 | I17: 0 | J17: 0 | K17: 102 | L17: 2 | M17: -1
A18: 103 | C18: 302 | E18: 3 | F18: icon_eq_3_4_3 | G18: 2 | H18: 0 | I18: 0 | J18: 0 | K18: 103 | L18: 3 | M18: -1
A19: 104 | C19: 303 | E19: 3 | F19: icon_eq_3_4_3 | G19: 2 | H19: 0 | I19: 0 | J19: 0 | K19: 104 | L19: 4 | M19: -1
A20: 105 | C20: 304 | E20: 3 | F20: icon_eq_3_4_3 | G20: 2 | H20: 0 | I20: 0 | J20: 0 | K20: 105 | L20: 5 | M20: -1
A21: 106 | C21: 305 | E21: 3 | F21: icon_eq_3_4_3 | G21: 2 | H21: 0 | I21: 0 | J21: 0 | K21: 106 | L21: 6 | M21: -1
A22: 107 | C22: 306 | E22: 3 | F22: icon_eq_3_4_3 | G22: 2 | H22: 0 | I22: 0 | J22: 0 | K22: 107 | L22: 7 | M22: -1
A23: 108 | C23: 307 | E23: 3 | F23: icon_eq_3_4_3 | G23: 2 | H23: 0 | I23: 0 | J23: 0 | K23: 108 | L23: 8 | M23: -1
A24: 109 | C24: 1408 | E24: 3 | F24: icon_eq_3_4_3 | G24: 2 | H24: 0 | I24: 0 | J24: 0 | K24: 109 | L24: 9 | M24: -1
A25: 110 | C25: 1409 | E25: 3 | F25: icon_eq_3_4_3 | G25: 2 | H25: 0 | I25: 0 | J25: 0 | K25: 110 | L25: 10 | M25: -1
A26: 111 | C26: 1410 | E26: 3 | F26: icon_eq_3_4_3 | G26: 2 | H26: 0 | I26: 0 | J26: 0 | K26: 111 | L26: 11 | M26: -1
A28: 201 | C28: 1600 | E28: 3 | F28: icon_item_Gear_Boots | G28: 3 | H28: 0 | I28: 0 | J28: 0 | K28: 201 | L28: 1 | M28: -1
A29: 202 | C29: 1601 | E29: 3 | F29: icon_item_Gear_Boots | G29: 3 | H29: 0 | I29: 0 | J29: 0 | K29: 202 | L29: 2 | M29: -1
A30: 203 | C30: 1602 | E30: 3 | F30: icon_item_Gear_Boots | G30: 3 | H30: 0 | I30: 0 | J30: 0 | K30: 203 | L30: 3 | M30: -1
A31: 204 | C31: 1603 | E31: 3 | F31: icon_item_Gear_Boots | G31: 3 | H31: 0 | I31: 0 | J31: 0 | K31: 204 | L31: 4 | M31: -1
A32: 205 | C32: 1604 | E32: 3 | F32: icon_item_Gear_Boots | G32: 3 | H32: 0 | I32: 0 | J32: 0 | K32: 205 | L32: 5 | M32: -1
A33: 206 | C33: 1605 | E33: 3 | F33: icon_item_Gear_Boots | G33: 3 | H33: 0 | I33: 0 | J33: 0 | K33: 206 | L33: 6 | M33: -1
A34: 207 | C34: 1606 | E34: 3 | F34: icon_item_Gear_Boots | G34: 3 | H34: 0 | I34: 0 | J34: 0 | K34: 207 | L34: 7 | M34: -1
A35: 208 | C35: 1607 | E35: 3 | F35: icon_item_Gear_Boots | G35: 3 | H35: 0 | I35: 0 | J35: 0 | K35: 208 | L35: 8 | M35: -1
A36: 209 | C36: 1608 | E36: 3 | F36: icon_item_Gear_Boots | G36: 3 | H36: 0 | I36: 0 | J36: 0 | K36: 209 | L36: 9 | M36: -1
A37: 210 | C37: 1609 | E37: 3 | F37: icon_item_Gear_Boots | G37: 3 | H37: 0 | I37: 0 | J37: 0 | K37: 210 | L37: 10 | M37: -1
A38: 211 | C38: 1610 | E38: 3 | F38: icon_item_Gear_Boots | G38: 3 | H38: 0 | I38: 0 | J38: 0 | K38: 211 | L38: 11 | M38: -1
A39: 212 | C39: 1611 | E39: 3 | F39: icon_item_Gear_Boots | G39: 3 | H39: 0 | I39: 0 | J39: 0 | K39: 212 | L39: 12 | M39: -1
A40: 213 | C40: 1612 | E40: 3 | F40: icon_item_Gear_Boots | G40: 3 | H40: 0 | I40: 0 | J40: 0 | K40: 213 | L40: 13 | M40: -1
A41: 214 | C41: 1613 | E41: 3 | F41: icon_item_Gear_Boots | G41: 3 | H41: 0 | I41: 0 | J41: 0 | K41: 214 | L41: 14 | M41: -1
A42: 215 | C42: 1614 | E42: 3 | F42: icon_item_Gear_Boots | G42: 3 | H42: 0 | I42: 0 | J42: 0 | K42: 215 | L42: 15 | M42: -1
A43: 216 | C43: 1615 | E43: 3 | F43: icon_item_Gear_Boots | G43: 3 | H43: 0 | I43: 0 | J43: 0 | K43: 216 | L43: 16 | M43: -1
A44: 217 | C44: 1616 | E44: 3 | F44: icon_item_Gear_Boots | G44: 3 | H44: 0 | I44: 0 | J44: 0 | K44: 217 | L44: 17 | M44: -1
A45: 218 | C45: 1617 | E45: 3 | F45: icon_item_Gear_Boots | G45: 3 | H45: 0 | I45: 0 | J45: 0 | K45: 218 | L45: 18 | M45: -1
A46: 219 | C46: 1618 | E46: 3 | F46: icon_item_Gear_Boots | G46: 3 | H46: 0 | I46: 0 | J46: 0 | K46: 219 | L46: 19 | M46: -1
A47: 220 | C47: 1619 | E47: 3 | F47: icon_item_Gear_Boots | G47: 3 | H47: 0 | I47: 0 | J47: 0 | K47: 220 | L47: 20 | M47: -1
A48: 221 | C48: 1620 | E48: 3 | F48: icon_item_Gear_Boots | G48: 3 | H48: 0 | I48: 0 | J48: 0 | K48: 221 | L48: 21 | M48: -1
A49: 222 | C49: 1621 | E49: 3 | F49: icon_item_Gear_Boots | G49: 3 | H49: 0 | I49: 0 | J49: 0 | K49: 222 | L49: 22 | M49: -1
A50: 223 | C50: 1622 | E50: 3 | F50: icon_item_Gear_Boots | G50: 3 | H50: 0 | I50: 0 | J50: 0 | K50: 223 | L50: 23 | M50: -1
A51: 224 | C51: 1623 | E51: 3 | F51: icon_item_Gear_Boots | G51: 3 | H51: 0 | I51: 0 | J51: 0 | K51: 224 | L51: 24 | M51: -1
A52: 225 | C52: 1624 | E52: 3 | F52: icon_item_Gear_Boots | G52: 3 | H52: 0 | I52: 0 | J52: 0 | K52: 225 | L52: 25 | M52: -1
A53: 226 | C53: 1625 | E53: 3 | F53: icon_item_Gear_Boots | G53: 3 | H53: 0 | I53: 0 | J53: 0 | K53: 226 | L53: 26 | M53: -1
A54: 227 | C54: 1626 | E54: 3 | F54: icon_item_Gear_Boots | G54: 3 | H54: 0 | I54: 0 | J54: 0 | K54: 227 | L54: 27 | M54: -1
A55: 228 | C55: 1627 | E55: 3 | F55: icon_item_Gear_Boots | G55: 3 | H55: 0 | I55: 0 | J55: 0 | K55: 228 | L55: 28 | M55: -1
A56: 229 | C56: 1628 | E56: 3 | F56: icon_item_Gear_Boots | G56: 3 | H56: 0 | I56: 0 | J56: 0 | K56: 229 | L56: 29 | M56: -1
A57: 230 | C57: 1629 | E57: 3 | F57: icon_item_Gear_Boots | G57: 3 | H57: 0 | I57: 0 | J57: 0 | K57: 230 | L57: 30 | M57: -1
A58: 231 | C58: 1630 | E58: 3 | F58: icon_item_Gear_Boots | G58: 3 | H58: 0 | I58: 0 | J58: 0 | K58: 231 | L58: 31 | M58: -1
A59: 232 | C59: 1631 | E59: 3 | F59: icon_item_Gear_Boots | G59: 3 | H59: 0 | I59: 0 | J59: 0 | K59: 232 | L59: 32 | M59: -1
A60: 233 | C60: 1632 | E60: 3 | F60: icon_item_Gear_Boots | G60: 3 | H60: 0 | I60: 0 | J60: 0 | K60: 233 | L60: 33 | M60: -1

Sheet ShopItemConfig
A1: ID | B1: giftID | C1: itemId | D1: itemCount | E1: costItemId | F1: price | G1: oldPrice | H1: buyCount | I1: maxBuyCount
A2: int | B2: string | C2: int[] | D2: int[] | E2: int | F2: int | G2: int | H2: int | I2: int
A4: ID | B4: 分发ID （appstore等分发礼包时使用） | C4: 包含道具ID | D4: 道具数量 | E4: 消耗道具ID 0 = 免费 1032 = 广告 | F4: 现价 （玩家购买价） | G4: 原价 | H4: 可买次数 (当期) -1=不限制 | I4: 最大购买次数 (全局) -1=不限制
A5: 1 | C5: 1001 | D5: 999999 | E5: 1001 | F5: 0 | G5: 1 | H5: -1 | I5: -1 | J5: =CONCATENATE(VLOOKUP(C5,[2]ItemConfig!$A:$C,3,FALSE)," × ",D5) -> 铜钱 × 999999
A6: 2 | C6: 1002 | D6: 9999 | E6: 1001 | F6: 1 | G6: 1 | H6: -1 | I6: -1 | J6: =CONCATENATE(VLOOKUP(C6,[2]ItemConfig!$A:$C,3,FALSE)," × ",D6) -> 银锭 × 9999
A7: 3 | C7: 1003 | D7: 9999 | E7: 1001 | F7: 1 | G7: 1 | H7: -1 | I7: -1 | J7: =CONCATENATE(VLOOKUP(C7,[2]ItemConfig!$A:$C,3,FALSE)," × ",D7) -> 修为 × 9999
A8: 4 | C8: 1004 | D8: 9999 | E8: 1001 | F8: 1 | G8: 1 | H8: -1 | I8: -1 | J8: =CONCATENATE(VLOOKUP(C8,[2]ItemConfig!$A:$C,3,FALSE)," × ",D8) -> 金锭 × 9999
A9: 5 | C9: 1005 | D9: 99999 | E9: 1001 | F9: 1 | G9: 1 | H9: -1 | I9: -1 | J9: =CONCATENATE(VLOOKUP(C9,[2]ItemConfig!$A:$C,3,FALSE)," × ",D9) -> 功法灵气 × 99999
A10: 6 | C10: 1006 | D10: 99999 | E10: 1001 | F10: 1 | G10: 1 | H10: -1 | I10: -1 | J10: =CONCATENATE(VLOOKUP(C10,[2]ItemConfig!$A:$C,3,FALSE)," × ",D10) -> 法宝灵韵 × 99999
A11: 7 | C11: 1301 | D11: 999 | E11: 1001 | F11: 1 | G11: 1 | H11: -1 | I11: -1 | J11: =CONCATENATE(VLOOKUP(C11,[2]ItemConfig!$A:$C,3,FALSE)," × ",D11) -> 天材地宝1 × 999
A12: 8 | C12: 1302 | D12: 999 | E12: 1001 | F12: 1 | G12: 1 | H12: -1 | I12: -1 | J12: =CONCATENATE(VLOOKUP(C12,[2]ItemConfig!$A:$C,3,FALSE)," × ",D12) -> 天材地宝2 × 999
A13: 9 | C13: 1303 | D13: 999 | E13: 1001 | F13: 1 | G13: 1 | H13: -1 | I13: -1 | J13: =CONCATENATE(VLOOKUP(C13,[2]ItemConfig!$A:$C,3,FALSE)," × ",D13) -> 天材地宝3 × 999
A14: 10 | C14: 1304 | D14: 999 | E14: 1001 | F14: 1 | G14: 1 | H14: -1 | I14: -1 | J14: =CONCATENATE(VLOOKUP(C14,[2]ItemConfig!$A:$C,3,FALSE)," × ",D14) -> 天材地宝4 × 999
A16: 101 | C16: 11001 | D16: 100 | E16: 1001 | F16: 1 | G16: 1 | H16: -1 | I16: -1 | J16: =CONCATENATE(VLOOKUP(C16,[2]ItemConfig!$A:$C,3,FALSE)," × ",D16) -> 神龙鼎碎片 × 100
A17: 102 | C17: 11002 | D17: 100 | E17: 1001 | F17: 1 | G17: 1 | H17: -1 | I17: -1 | J17: =CONCATENATE(VLOOKUP(C17,[2]ItemConfig!$A:$C,3,FALSE)," × ",D17) -> 破天斧碎片 × 100
A18: 103 | C18: 11003 | D18: 100 | E18: 1001 | F18: 1 | G18: 1 | H18: -1 | I18: -1 | J18: =CONCATENATE(VLOOKUP(C18,[2]ItemConfig!$A:$C,3,FALSE)," × ",D18) -> 翡翠葫芦碎片 × 100
A19: 104 | C19: 11004 | D19: 100 | E19: 1001 | F19: 1 | G19: 1 | H19: -1 | I19: -1 | J19: =CONCATENATE(VLOOKUP(C19,[2]ItemConfig!$A:$C,3,FALSE)," × ",D19) -> 混沌珠碎片 × 100
A20: 105 | C20: 11005 | D20: 100 | E20: 1001 | F20: 1 | G20: 1 | H20: -1 | I20: -1 | J20: =CONCATENATE(VLOOKUP(C20,[2]ItemConfig!$A:$C,3,FALSE)," × ",D20) -> 琉璃宝塔碎片 × 100
A21: 106 | C21: 11006 | D21: 100 | E21: 1001 | F21: 1 | G21: 1 | H21: -1 | I21: -1 | J21: =CONCATENATE(VLOOKUP(C21,[2]ItemConfig!$A:$C,3,FALSE)," × ",D21) -> 九幽镇魂瓶碎片 × 100
A22: 107 | C22: 11007 | D22: 100 | E22: 1001 | F22: 1 | G22: 1 | H22: -1 | I22: -1 | J22: =CONCATENATE(VLOOKUP(C22,[2]ItemConfig!$A:$C,3,FALSE)," × ",D22) -> 玉莲守心灯碎片 × 100
A23: 108 | C23: 11008 | D23: 100 | E23: 1001 | F23: 1 | G23: 1 | H23: -1 | I23: -1 | J23: =CONCATENATE(VLOOKUP(C23,[2]ItemConfig!$A:$C,3,FALSE)," × ",D23) -> 融灵塔碎片 × 100
A24: 109 | C24: 11009 | D24: 100 | E24: 1001 | F24: 1 | G24: 1 | H24: -1 | I24: -1 | J24: =CONCATENATE(VLOOKUP(C24,[2]ItemConfig!$A:$C,3,FALSE)," × ",D24) -> 禁元珠碎片 × 100
A25: 110 | C25: 11010 | D25: 100 | E25: 1001 | F25: 1 | G25: 1 | H25: -1 | I25: -1 | J25: =CONCATENATE(VLOOKUP(C25,[2]ItemConfig!$A:$C,3,FALSE)," × ",D25) -> 玄龟盾碎片 × 100
A26: 111 | C26: 11011 | D26: 100 | E26: 1001 | F26: 1 | G26: 1 | H26: -1 | I26: -1 | J26: =CONCATENATE(VLOOKUP(C26,[2]ItemConfig!$A:$C,3,FALSE)," × ",D26) -> 天殇血刃剑碎片 × 100
A28: 201 | C28: 13001 | D28: 100 | E28: 1001 | F28: 1 | G28: 1 | H28: -1 | I28: -1 | J28: =CONCATENATE(VLOOKUP(C28,[2]ItemConfig!$A:$C,3,FALSE)," × ",D28) -> 太虚幻剑经碎片 × 100
A29: 202 | C29: 13002 | D29: 100 | E29: 1001 | F29: 1 | G29: 1 | H29: -1 | I29: -1 | J29: =CONCATENATE(VLOOKUP(C29,[2]ItemConfig!$A:$C,3,FALSE)," × ",D29) -> 天罡剑气诀碎片 × 100
A30: 203 | C30: 13003 | D30: 100 | E30: 1001 | F30: 1 | G30: 1 | H30: -1 | I30: -1 | J30: =CONCATENATE(VLOOKUP(C30,[2]ItemConfig!$A:$C,3,FALSE)," × ",D30) -> 血刃金煌功碎片 × 100
A31: 204 | C31: 13004 | D31: 100 | E31: 1001 | F31: 1 | G31: 1 | H31: -1 | I31: -1 | J31: =CONCATENATE(VLOOKUP(C31,[2]ItemConfig!$A:$C,3,FALSE)," × ",D31) -> 飞刃碎片 × 100
A32: 205 | C32: 13005 | D32: 100 | E32: 1001 | F32: 1 | G32: 1 | H32: -1 | I32: -1 | J32: =CONCATENATE(VLOOKUP(C32,[2]ItemConfig!$A:$C,3,FALSE)," × ",D32) -> 金针碎片 × 100
A33: 206 | C33: 13006 | D33: 100 | E33: 1001 | F33: 1 | G33: 1 | H33: -1 | I33: -1 | J33: =CONCATENATE(VLOOKUP(C33,[2]ItemConfig!$A:$C,3,FALSE)," × ",D33) -> 碧落幽冥劲碎片 × 100
A34: 207 | C34: 13007 | D34: 100 | E34: 1001 | F34: 1 | G34: 1 | H34: -1 | I34: -1 | J34: =CONCATENATE(VLOOKUP(C34,[2]ItemConfig!$A:$C,3,FALSE)," × ",D34) -> 雾隐千流法碎片 × 100
A35: 208 | C35: 13008 | D35: 100 | E35: 1001 | F35: 1 | G35: 1 | H35: -1 | I35: -1 | J35: =CONCATENATE(VLOOKUP(C35,[2]ItemConfig!$A:$C,3,FALSE)," × ",D35) -> 功法-水3碎片 × 100
A36: 209 | C36: 13009 | D36: 100 | E36: 1001 | F36: 1 | G36: 1 | H36: -1 | I36: -1 | J36: =CONCATENATE(VLOOKUP(C36,[2]ItemConfig!$A:$C,3,FALSE)," × ",D36) -> 水球碎片 × 100
A37: 210 | C37: 13010 | D37: 100 | E37: 1001 | F37: 1 | G37: 1 | H37: -1 | I37: -1 | J37: =CONCATENATE(VLOOKUP(C37,[2]ItemConfig!$A:$C,3,FALSE)," × ",D37) -> 冰刀碎片 × 100
A38: 211 | C38: 13011 | D38: 100 | E38: 1001 | F38: 1 | G38: 1 | H38: -1 | I38: -1 | J38: =CONCATENATE(VLOOKUP(C38,[2]ItemConfig!$A:$C,3,FALSE)," × ",D38) -> 瘴影千丝术碎片 × 100
A39: 212 | C39: 13012 | D39: 100 | E39: 1001 | F39: 1 | G39: 1 | H39: -1 | I39: -1 | J39: =CONCATENATE(VLOOKUP(C39,[2]ItemConfig!$A:$C,3,FALSE)," × ",D39) -> 蚀骨腐血掌碎片 × 100
A40: 213 | C40: 13013 | D40: 100 | E40: 1001 | F40: 1 | G40: 1 | H40: -1 | I40: -1 | J40: =CONCATENATE(VLOOKUP(C40,[2]ItemConfig!$A:$C,3,FALSE)," × ",D40) -> 功法-木3碎片 × 100
A41: 214 | C41: 13014 | D41: 100 | E41: 1001 | F41: 1 | G41: 1 | H41: -1 | I41: -1 | J41: =CONCATENATE(VLOOKUP(C41,[2]ItemConfig!$A:$C,3,FALSE)," × ",D41) -> 竹刺碎片 × 100
A42: 215 | C42: 13015 | D42: 100 | E42: 1001 | F42: 1 | G42: 1 | H42: -1 | I42: -1 | J42: =CONCATENATE(VLOOKUP(C42,[2]ItemConfig!$A:$C,3,FALSE)," × ",D42) -> 飞叶碎片 × 100
A43: 216 | C43: 13016 | D43: 100 | E43: 1001 | F43: 1 | G43: 1 | H43: -1 | I43: -1 | J43: =CONCATENATE(VLOOKUP(C43,[2]ItemConfig!$A:$C,3,FALSE)," × ",D43) -> 烈焰剑碎片 × 100
A44: 217 | C44: 13017 | D44: 100 | E44: 1001 | F44: 1 | G44: 1 | H44: -1 | I44: -1 | J44: =CONCATENATE(VLOOKUP(C44,[2]ItemConfig!$A:$C,3,FALSE)," × ",D44) -> 赤焰龙吟功碎片 × 100
A45: 218 | C45: 13018 | D45: 100 | E45: 1001 | F45: 1 | G45: 1 | H45: -1 | I45: -1 | J45: =CONCATENATE(VLOOKUP(C45,[2]ItemConfig!$A:$C,3,FALSE)," × ",D45) -> 朱雀燎原指碎片 × 100
A46: 219 | C46: 13019 | D46: 100 | E46: 1001 | F46: 1 | G46: 1 | H46: -1 | I46: -1 | J46: =CONCATENATE(VLOOKUP(C46,[2]ItemConfig!$A:$C,3,FALSE)," × ",D46) -> 火球碎片 × 100
A47: 220 | C47: 13020 | D47: 100 | E47: 1001 | F47: 1 | G47: 1 | H47: -1 | I47: -1 | J47: =CONCATENATE(VLOOKUP(C47,[2]ItemConfig!$A:$C,3,FALSE)," × ",D47) -> 火刀碎片 × 100
A48: 221 | C48: 13021 | D48: 100 | E48: 1001 | F48: 1 | G48: 1 | H48: -1 | I48: -1 | J48: =CONCATENATE(VLOOKUP(C48,[2]ItemConfig!$A:$C,3,FALSE)," × ",D48) -> 黄尘灭魂刺碎片 × 100
A49: 222 | C49: 13022 | D49: 100 | E49: 1001 | F49: 1 | G49: 1 | H49: -1 | I49: -1 | J49: =CONCATENATE(VLOOKUP(C49,[2]ItemConfig!$A:$C,3,FALSE)," × ",D49) -> 地裂屠龙斩碎片 × 100
A50: 223 | C50: 13023 | D50: 100 | E50: 1001 | F50: 1 | G50: 1 | H50: -1 | I50: -1 | J50: =CONCATENATE(VLOOKUP(C50,[2]ItemConfig!$A:$C,3,FALSE)," × ",D50) -> 功法-土3碎片 × 100
A51: 224 | C51: 13024 | D51: 100 | E51: 1001 | F51: 1 | G51: 1 | H51: -1 | I51: -1 | J51: =CONCATENATE(VLOOKUP(C51,[2]ItemConfig!$A:$C,3,FALSE)," × ",D51) -> 落石碎片 × 100
A52: 225 | C52: 13025 | D52: 100 | E52: 1001 | F52: 1 | G52: 1 | H52: -1 | I52: -1 | J52: =CONCATENATE(VLOOKUP(C52,[2]ItemConfig!$A:$C,3,FALSE)," × ",D52) -> 小石头碎片 × 100
A53: 226 | C53: 13501 | D53: 100 | E53: 1001 | F53: 1 | G53: 1 | H53: -1 | I53: -1 | J53: =CONCATENATE(VLOOKUP(C53,[2]ItemConfig!$A:$C,3,FALSE)," × ",D53) -> 天衍星辰诀碎片 × 100
A54: 227 | C54: 13502 | D54: 100 | E54: 1001 | F54: 1 | G54: 1 | H54: -1 | I54: -1 | J54: =CONCATENATE(VLOOKUP(C54,[2]ItemConfig!$A:$C,3,FALSE)," × ",D54) -> 法宝秘籍碎片 × 100
A55: 228 | C55: 13503 | D55: 100 | E55: 1001 | F55: 1 | G55: 1 | H55: -1 | I55: -1 | J55: =CONCATENATE(VLOOKUP(C55,[2]ItemConfig!$A:$C,3,FALSE)," × ",D55) -> 崩脉决碎片 × 100
A56: 229 | C56: 13504 | D56: 100 | E56: 1001 | F56: 1 | G56: 1 | H56: -1 | I56: -1 | J56: =CONCATENATE(VLOOKUP(C56,[2]ItemConfig!$A:$C,3,FALSE)," × ",D56) -> 两仪决碎片 × 100
A57: 230 | C57: 13505 | D57: 100 | E57: 1001 | F57: 1 | G57: 1 | H57: -1 | I57: -1 | J57: =CONCATENATE(VLOOKUP(C57,[2]ItemConfig!$A:$C,3,FALSE)," × ",D57) -> 火焰决碎片 × 100
A58: 231 | C58: 13506 | D58: 100 | E58: 1001 | F58: 1 | G58: 1 | H58: -1 | I58: -1 | J58: =CONCATENATE(VLOOKUP(C58,[2]ItemConfig!$A:$C,3,FALSE)," × ",D58) -> 乾坤巨灵诀碎片 × 100
A59: 232 | C59: 13507 | D59: 100 | E59: 1001 | F59: 1 | G59: 1 | H59: -1 | I59: -1 | J59: =CONCATENATE(VLOOKUP(C59,[2]ItemConfig!$A:$C,3,FALSE)," × ",D59) -> 极速齿轮碎片 × 100
A60: 233 | C60: 13508 | D60: 100 | E60: 1001 | F60: 1 | G60: 1 | H60: -1 | I60: -1 | J60: =CONCATENATE(VLOOKUP(C60,[2]ItemConfig!$A:$C,3,FALSE)," × ",D60) -> 太虚剑意碎片 × 100
